fUST/lending_fUST_20250627
["ID","MTS","AMOUNT","RATE_DAILY","PERIOD"]
[367882648,1750953635321,295.53,0.000229,31]
[367882649,1750953635385,295.53,0.000229,31]
[367882650,1750953635569,295.53,0.000229,31]
[367882651,1750953635628,295.53,0.000229,31]
[367882652,1750953635694,295.53,0.000229,31]
[367882653,1750953635754,295.53,0.000229,31]
[367882654,1750953635812,295.53,0.000229,31]
[367882655,1750953635869,295.53,0.000229,31]
[367882656,1750953635929,295.53,0.000229,31]
[367882657,1750953635989,295.53,0.000229,31]
[367882658,1750953636040,295.53,0.000229,31]
[367882659,1750953636103,295.53,0.000229,31]
[367882660,1750953636152,295.53,0.000229,31]
[367882661,1750953636219,295.53,0.000229,31]
[367882662,1750953636296,295.53,0.000229,31]
[367882663,1750953636457,295.53,0.000229,31]
[367882664,1750953841594,7195.0,0.00024658,120]
[367882666,1750953972168,211.513151,0.00013699,2]
[367882667,1750954032670,-250.0,0.00016288,2]
[367882668,1750954032693,-53.11809068,0.00016335,2]
[367882669,1750954035694,-218.10483723,0.00016335,2]
[367882670,1750954039132,-198.7787381,0.0001624,2]
[367882671,1750954039155,-83.11642467,0.00016335,2]
[367882672,1750954043635,-214.580515,0.00016335,2]
[367882673,1750954045889,-214.580515,0.00016335,2]
[367882674,1750954048467,-570.83897,0.00016335,2]
[367882675,1750954051757,-300.0,0.00016335,2]
[367882676,1750954056754,-248.98110394,0.00016335,2]
[367882677,1750954060731,-230.45057286,0.00016335,2]
[367882678,1750954064442,-423.85816638,0.00016335,2]
[367882679,1750954066600,-167.8695222,0.00016335,2]
[367882680,1750954068268,-342.81067904,0.00016335,2]
[367882681,1750954073759,-213.72380786,0.00016335,2]
[367882682,1750954075288,-160.0,0.00016335,2]
[367882683,1750954080433,-160.0,0.00016335,2]
[367882684,1750954083283,-258.13141219,0.00016334,2]
[367882685,1750954088805,-41.86858781,0.00016334,2]
[367882686,1750954088828,-339.60574898,0.00016335,2]
[367882687,1750954091528,-197.32291218,0.00016276,2]
[367882688,1750954093092,-230.24506774,0.00016276,2]
[367882689,1750954096311,-160.0,0.00016276,2]
[367882690,1750954100009,-155.0,0.00016276,2]
[367882691,1750954104417,-260.14818663,0.00016276,2]
[367882692,1750954107679,-339.85181337,0.00016276,2]
[367882693,1750954112911,-200.0,0.00016276,2]
[367882694,1750954115018,-200.0,0.00016276,2]
[367882695,1750954116542,-200.0,0.00016276,2]
[367882696,1750954119233,-200.0,0.00016276,2]
[367882697,1750954122506,-200.0,0.00016276,2]
[367882698,1750954124130,-200.0,0.00016276,2]
[367882699,1750954125771,-200.0,0.00016276,2]
[367882700,1750954128463,-191.06384989,0.00016276,2]
[367882701,1750954132841,-208.93615011,0.00016276,2]
[367882702,1750954134834,-192.13707382,0.00016176,2]
[367882703,1750954136463,-108.25204287,0.00016176,2]
[367882704,1750954136487,-99.61088331,0.00016276,2]
[367882705,1750954138462,-200.0,0.00016276,2]
[367882706,1750954140556,-191.06384989,0.00016206,2]
[367882707,1750954143205,-109.32526679,0.00016206,2]
[367882708,1750954143231,-99.61088332,0.00016234,2]
[367882709,1750954145776,-200.0,0.00016234,2]
[367882710,1750954148424,-176.65560383,0.00016234,2]
[367882711,1750954150046,-223.34439617,0.00016234,2]
[367882717,1750954153359,-362.12971342,0.00016234,2]
[367882718,1750954154945,-76.82635321,0.00016234,2]
[367882719,1750954154968,-90.17364679,0.00016234,2]
[367882720,1750954157013,-222.01,0.00016234,2]
[367882721,1750954160115,-222.01,0.00016234,2]
[367882722,1750954162128,-276.46211037,0.00016234,2]
[367882791,1750954178523,1068.9961,0.00024657,120]
[367882808,1750954232067,-27.71792876,0.00016234,2]
[367882809,1750954232077,-838.3736859,0.00016235,2]
[367882810,1750954232087,-838.3736859,0.00016235,2]
[367882811,1750954232097,-300.0,0.00016275,2]
[367882812,1750954232107,-300.0,0.00016275,2]
[367882813,1750954232116,-300.0,0.00016275,2]
[367882814,1750954232126,-995.82027786,0.00016275,2]
[367882815,1750954232138,-204.17972214,0.00016275,2]
[367882816,1750954232148,-300.0,0.00016275,2]
[367882817,1750954232157,-2680.85088957,0.00016276,2]
[367882818,1750954232167,-3920.92705918,0.00016276,2]
[367882819,1750954232178,-20979.07294082,0.00016276,2]
[367882820,1750954232188,-641.3548579,0.00016314,2]
[367882821,1750954232198,-500.0,0.00016334,2]
[367882822,1750954232207,-346.42764463,0.00016334,2]
[367882823,1750954232217,-500.0,0.00016334,2]
[367882824,1750954232232,-379.44706787,0.00016334,2]
[367882825,1750954232426,-500.0,0.00016334,2]
[367882826,1750954232436,-500.0,0.00016334,2]
[367882827,1750954232446,-500.0,0.00016334,2]
[367882828,1750954232456,-500.0,0.00016334,2]
[367882829,1750954232466,-500.0,0.00016334,2]
[367882830,1750954232476,-246.73070236,0.00016334,2]
[367882831,1750954232485,-419.85877345,0.00016334,2]
[367882832,1750954232497,-80.14122655,0.00016334,2]
[367882833,1750954232508,-500.0,0.00016334,2]
[367882834,1750954232518,-500.0,0.00016334,2]
[367882835,1750954232528,-285.46645614,0.00016334,2]
[367882836,1750954232537,-309.2530952,0.00016334,2]
[367882837,1750954232547,-500.0,0.00016334,2]
[367882838,1750954232556,-500.0,0.00016334,2]
[367882839,1750954232566,-500.0,0.00016334,2]
[367882840,1750954232576,-500.0,0.00016334,2]
[367882841,1750954232585,-500.0,0.00016334,2]
[367882842,1750954232594,-24.63921711,0.00016334,2]
[367882843,1750954232646,198.15651996,0.00015788,2]
[367882904,1750954239136,-474.16061118,0.00016333,2]
[367882905,1750954239146,-500.0,0.00016333,2]
[367882907,1750954239155,-500.0,0.00016333,2]
[367882909,1750954239165,-500.0,0.00016333,2]
[367882911,1750954239174,-500.0,0.00016333,2]
[367882912,1750954239184,-500.0,0.00016333,2]
[367882914,1750954239194,-500.0,0.00016333,2]
[367882915,1750954239203,-198.38516179,0.00016333,2]
[367882917,1750954239212,-500.0,0.00016333,2]
[367882918,1750954239222,-500.0,0.00016333,2]
[367882919,1750954239235,-500.0,0.00016333,2]
[367882921,1750954239244,-500.0,0.00016333,2]
[367882923,1750954239254,-500.0,0.00016333,2]
[367882924,1750954239264,-500.0,0.00016333,2]
[367882926,1750954239274,-500.0,0.00016333,2]
[367882928,1750954239283,-500.0,0.00016333,2]
[367882930,1750954239293,-500.0,0.00016333,2]
[367882931,1750954239303,-500.0,0.00016333,2]
[367882933,1750954239313,-500.0,0.00016333,2]
[367882935,1750954239323,-500.0,0.00016333,2]
[367882936,1750954239332,-500.0,0.00016333,2]
[367882938,1750954239342,-500.0,0.00016333,2]
[367882940,1750954239352,-386.15462495,0.00016333,2]
[367882942,1750954239361,-500.0,0.00016333,2]
[367882943,1750954239371,-500.0,0.00016333,2]
[367882945,1750954239380,-310.97489195,0.00016333,2]
[367882947,1750954239390,-500.0,0.00016333,2]
[367882949,1750954239399,-379.36304545,0.00016333,2]
[367882955,1750954239465,-120.63695455,0.00016333,2]
[367882956,1750954239475,-500.0,0.00016333,2]
[367882958,1750954239485,-500.0,0.00016333,2]
[367882959,1750954239495,-500.0,0.00016333,2]
[367882961,1750954239505,-500.0,0.00016333,2]
[367882963,1750954239516,-500.0,0.00016333,2]
[367882965,1750954239525,-500.0,0.00016333,2]
[367882966,1750954239535,-500.0,0.00016333,2]
[367882968,1750954239544,-500.0,0.00016333,2]
[367882970,1750954239554,-500.0,0.00016333,2]
[367882972,1750954239564,-500.0,0.00016333,2]
[367882974,1750954239574,-367.10442964,0.00016333,2]
[367882975,1750954239584,-500.0,0.00016333,2]
[367882977,1750954239594,-500.0,0.00016333,2]
[367882979,1750954239604,-500.0,0.00016333,2]
[367882981,1750954239613,-500.0,0.00016333,2]
[367882982,1750954239623,-500.0,0.00016333,2]
[367882984,1750954239632,-500.0,0.00016333,2]
[367882986,1750954239642,-500.0,0.00016333,2]
[367882988,1750954239652,-500.0,0.00016333,2]
[367882990,1750954239661,-500.0,0.00016333,2]
[367882991,1750954239671,-500.0,0.00016333,2]
[367882993,1750954239680,-589.2530952,0.00016333,2]
[367882995,1750954239690,-500.0,0.00016333,2]
[367882997,1750954239699,-500.0,0.00016333,2]
[367882998,1750954239709,-500.0,0.00016333,2]
[367883000,1750954239718,-500.0,0.00016333,2]
[367883002,1750954239728,-250.00000001,0.00016333,2]
[367883004,1750954239737,-500.0,0.00016333,2]
[367883005,1750954239747,-500.0,0.00016333,2]
[367883007,1750954239757,-500.0,0.00016333,2]
[367883009,1750954239767,-500.0,0.00016333,2]
[367883011,1750954239778,-500.0,0.00016333,2]
[367883013,1750954239787,-500.0,0.00016333,2]
[367883015,1750954239796,-500.0,0.00016333,2]
[367883016,1750954239806,-500.0,0.00016333,2]
[367883018,1750954239816,-500.0,0.00016333,2]
[367883020,1750954239825,-500.0,0.00016333,2]
[367883022,1750954239835,-500.0,0.00016333,2]
[367883023,1750954239845,-500.0,0.00016333,2]
[367883025,1750954239854,-500.0,0.00016333,2]
[367883027,1750954239864,-500.0,0.00016333,2]
[367883029,1750954239873,-500.0,0.00016333,2]
[367883031,1750954239883,-500.0,0.00016333,2]
[367883033,1750954239892,-500.0,0.00016333,2]
[367883034,1750954239901,-500.0,0.00016333,2]
[367883036,1750954239911,-500.0,0.00016333,2]
[367883038,1750954239920,-500.0,0.00016333,2]
[367883040,1750954239931,-478.93828352,0.00016333,2]
[367883042,1750954239940,-99315.08215126,0.00016335,2]
[367883043,1750954239949,-359.4703468,0.00016335,2]
[367883045,1750954239958,-425.23766605,0.00016373,2]
[367883047,1750954239968,-500.0,0.00016373,2]
[367883049,1750954239977,-500.0,0.00016373,2]
[367883051,1750954239986,-246.66769021,0.00016373,2]
[367883052,1750954239995,-502.25946135,0.00016415,2]
[367883054,1750954240005,-505.22350188,0.00016415,2]
[367883056,1750954240015,-500.0,0.00016415,2]
[367883058,1750954240024,-500.0,0.00016415,2]
[367883060,1750954240033,-500.0,0.00016415,2]
[367883062,1750954240044,-500.0,0.00016415,2]
[367883063,1750954240053,-500.0,0.00016415,2]
[367883065,1750954240063,-500.0,0.00016415,2]
[367883067,1750954240073,-500.0,0.00016438,2]
[367883069,1750954240082,-500.0,0.00016438,2]
[367883070,1750954240091,-500.0,0.00016438,2]
[367883071,1750954240101,-500.0,0.00016438,2]
[367883072,1750954240111,-500.0,0.00016438,2]
[367883073,1750954240120,-500.0,0.00016438,2]
[367883074,1750954240130,-500.0,0.00016438,2]
[367883075,1750954240139,-500.0,0.00016438,2]
[367883076,1750954240149,-500.0,0.00016438,2]
[367883077,1750954240159,-500.0,0.00016438,2]
[367883078,1750954240168,-500.0,0.00016438,2]
[367883079,1750954240180,-420.95994053,0.00016438,2]
[367883080,1750954240190,-500.0,0.00016438,2]
[367883081,1750954240199,-500.0,0.00016438,2]
[367883082,1750954240208,-500.0,0.00016438,2]
[367883083,1750954240218,-500.0,0.00016438,2]
[367883084,1750954240229,-500.0,0.00016438,2]
[367883085,1750954240239,-500.0,0.00016438,2]
[367883086,1750954240248,-500.0,0.00016438,2]
[367883087,1750954240258,-500.0,0.00016438,2]
[367883088,1750954240269,-500.0,0.00016438,2]
[367883089,1750954240279,-500.0,0.00016438,2]
[367883090,1750954240288,-219.835671,0.00016802,2]
[367883091,1750954240298,-293.6215881,0.00016887,2]
[367883093,1750954240310,-1000.0,0.00016921,2]
[367883095,1750954240320,-476.26006367,0.00016921,2]
[367883097,1750954240329,-500.84850324,0.00016963,2]
[367883099,1750954240339,-500.0,0.00016963,2]
[367883101,1750954240348,-1000.0,0.00016963,2]
[367883103,1750954240357,-395.5265441,0.00016963,2]
[367883104,1750954240367,-1080.8694489,0.00016963,2]
[367883106,1750954240376,-672.565706,0.00017236,2]
[367883108,1750954240385,-1356.2604635,0.00017322,2]
[367883110,1750954240394,-1138.56694991,0.00017361,2]
[367883111,1750954240404,-206.88,0.000174,3]
[367883113,1750954240413,-620.66,0.000174,3]
[367883115,1750954240422,-297.0,0.00017408,2]
[367883117,1750954240431,-23297.0478817,0.0001741,2]
[367883119,1750954240440,-1466.922452,0.00017443,2]
[367883120,1750954240449,-1500.0,0.00017468,2]
[367883122,1750954240459,-504.53964016,0.00017511,2]
[367883124,1750954240468,-500.0,0.00017564,2]
[367883126,1750954240478,-500.0,0.00017564,2]
[367883128,1750954240487,-500.0,0.00017564,2]
[367883129,1750954240496,-500.0,0.00017564,2]
[367883131,1750954240507,-500.0,0.00017564,2]
[367883133,1750954240517,-500.0,0.00017564,2]
[367883135,1750954240527,-616.99314575,0.00017564,2]
[367883137,1750954240536,-408.53445099,0.00017564,2]
[367883139,1750954240546,-2834.5245528,0.00017565,2]
[367883140,1750954240555,-350.0,0.00017648,2]
[367883142,1750954240564,-1746.3742798,0.00017769,2]
[367883145,1750954240574,-420.0,0.00017789,2]
[367883147,1750954240583,-420.0,0.00017789,2]
[367883149,1750954240592,-420.0,0.00017789,2]
[367883150,1750954240601,-420.0,0.00017789,2]
[367883152,1750954240611,-164.8153706,0.00017794,2]
[367883154,1750954240620,-151.0,0.000178,2]
[367883156,1750954240629,-1680.0,0.00017878,2]
[367883157,1750954240638,-164.872834,0.00017994,2]
[367883159,1750954240647,-164.872834,0.00018012,2]
[367883161,1750954240657,-627.19226716,0.00018016,2]
[367883163,1750954240667,-164.872834,0.0001803,2]
[367883165,1750954240676,-164.872834,0.00018048,2]
[367883166,1750954240684,-164.872834,0.00018066,2]
[367883168,1750954240694,-164.872834,0.00018084,2]
[367883170,1750954240704,-151.0,0.000181,2]
[367883172,1750954240713,-172.683504,0.00018204,2]
[367883174,1750954240722,-471.595906,0.00018333,2]
[367883175,1750954240731,-164.747072,0.00018371,2]
[367883177,1750954240741,-164.8153706,0.00018415,2]
[367883179,1750954240750,-258.83693855,0.00018468,2]
[367883181,1750954240759,-1138.56694991,0.00018487,2]
[367883183,1750954240769,-151.0,0.000185,2]
[367883184,1750954240778,-306.37,0.00018565,3]
[367883186,1750954240788,-153.18,0.00018565,3]
[367883188,1750954240798,-459.59,0.00018565,3]
[367883190,1750954240808,-160.0,0.00018571,2]
[367883192,1750954240818,-160.0,0.00018571,2]
[367883194,1750954240827,-160.0,0.00018571,2]
[367883196,1750954240836,-160.0,0.00018571,2]
[367883198,1750954240846,-12560.17507789,0.00018575,2]
[367883199,1750954240855,-413.76,0.0001877,3]
[367883201,1750954240864,-354.528593,0.000188,2]
[367883203,1750954240873,-159.2154015,0.000188,2]
[367883205,1750954240883,-1149.8955254,0.000188,2]
[367883207,1750954240892,-159.2154015,0.000188,2]
[367883209,1750954240901,-214.60946617,0.000188,2]
[367883210,1750954240911,-603.69846328,0.000188,2]
[367883212,1750954240921,-201.63560802,0.000188,2]
[367883214,1750954240930,-277.85746498,0.000188,2]
[367883216,1750954240939,-151.0,0.000188,2]
[367883218,1750954240948,-160.0,0.00018915,2]
[367883220,1750954240958,-1000.0,0.00018916,2]
[367883221,1750954240967,-666.0,0.00018978,2]
[367883223,1750954240977,-5000.0,0.00018978,2]
[367883225,1750954240986,-500.0,0.00018978,2]
[367883227,1750954240995,-500.0,0.00018978,2]
[367883229,1750954241005,-200.0,0.00018978,2]
[367883231,1750954241015,-200.0,0.00018978,2]
[367883233,1750954241024,-200.0,0.00018978,2]
[367883234,1750954241033,-500.0,0.00018978,2]
[367883236,1750954241043,-200.0,0.00018978,2]
[367883238,1750954241052,-500.0,0.00018978,2]
[367883240,1750954241061,-151.0,0.00018978,2]
[367883242,1750954241071,-500.0,0.00018978,2]
[367883244,1750954241079,-1245.65133483,0.00018978,2]
[367883245,1750954241089,-200.0,0.00018978,2]
[367883247,1750954241098,-500.0,0.00018978,2]
[367883249,1750954241107,-151.0,0.00018978,2]
[367883251,1750954241116,-200.0,0.00018978,2]
[367883253,1750954241125,-500.0,0.00018978,2]
[367883255,1750954241134,-200.0,0.00018978,2]
[367883256,1750954241143,-198.0,0.00018978,2]
[367883258,1750954241153,-500.0,0.00018978,2]
[367883260,1750954241162,-200.0,0.00018978,2]
[367883262,1750954241172,-500.0,0.00018978,2]
[367883264,1750954241181,-200.0,0.00018978,2]
[367883266,1750954241191,-200.0,0.00018978,2]
[367883268,1750954241200,-500.0,0.00018978,2]
[367883269,1750954241209,-500.0,0.00018978,2]
[367883271,1750954241219,-200.0,0.00018978,2]
[367883273,1750954241232,-25000.0,0.00018978,2]
[367883275,1750954241241,-500.0,0.00018978,2]
[367883277,1750954241250,-500.0,0.00018978,2]
[367883279,1750954241260,-200.0,0.00018978,2]
[367883280,1750954241271,-8632.14390024,0.00018978,2]
[367883282,1750954241280,-200.0,0.00018978,2]
[367883285,1750954241290,-500.0,0.00018978,2]
[367883286,1750954241305,-200.0,0.00018978,2]
[367883288,1750954241315,-500.0,0.00018978,2]
[367883290,1750954241324,-200.0,0.00018978,2]
[367883292,1750954241333,-500.0,0.00018978,2]
[367883294,1750954241343,-200.0,0.00018978,2]
[367883296,1750954241352,-500.0,0.00018978,2]
[367883297,1750954241362,-200.0,0.00018978,2]
[367883299,1750954241372,-200.0,0.00018978,2]
[367883301,1750954241382,-500.0,0.00018978,2]
[367883303,1750954241391,-500.0,0.00018978,2]
[367883305,1750954241400,-500.0,0.00018978,2]
[367883306,1750954241410,-500.0,0.00018978,2]
[367883308,1750954241419,-207.4,0.00018978,2]
[367883311,1750954241429,-151.66540298,0.00018978,2]
[367883312,1750954241442,-4588.07040311,0.00019025,2]
[367883314,1750954241452,-690.642,0.00019033,2]
[367883316,1750954241463,-164.8153706,0.00019036,2]
[367883318,1750954241472,-456.66634739,0.00019088,2]
[367883320,1750954241482,-160.0,0.00019089,2]
[367883322,1750954241491,-230.24506774,0.00019092,2]
[367883324,1750954241500,-836.92866116,0.00019092,2]
[367883326,1750954241510,-160.0,0.00019092,2]
[367883328,1750954241520,-846.92323443,0.00019092,2]
[367883330,1750954241529,-214.88139422,0.00019092,2]
[367883332,1750954241538,-213.72380786,0.00019092,2]
[367883334,1750954241548,-160.0,0.00019092,2]
[367883336,1750954241557,-302.07678004,0.00019117,2]
[367883338,1750954241566,-500.0,0.00019117,2]
[367883339,1750954241575,-502.36847634,0.00019117,2]
[367883340,1750954241584,-500.0,0.00019117,2]
[367883341,1750954241593,-500.0,0.00019117,2]
[367883342,1750954241602,-151.0,0.00019125,2]
[367883343,1750954241612,-224.74916,0.00019125,2]
[367883344,1750954241622,-151.0,0.00019125,2]
[367883345,1750954241632,-151.0,0.00019125,2]
[367883346,1750954241641,-151.0,0.00019125,2]
[367883347,1750954241652,-151.0,0.00019125,2]
[367883348,1750954241666,-151.0,0.00019126,2]
[367883349,1750954241675,-151.0,0.00019126,2]
[367883350,1750954241684,-151.0,0.00019126,2]
[367883351,1750954241694,-151.0,0.00019126,2]
[367883352,1750954241703,-151.0,0.00019126,2]
[367883353,1750954241712,-194.649607,0.00019126,2]
[367883354,1750954241722,-344.13661,0.00019126,2]
[367883355,1750954241731,-344.13661,0.00019126,2]
[367883356,1750954241740,-344.13661,0.00019126,2]
[367883357,1750954241749,-344.13661,0.00019126,2]
[367883358,1750954241760,-151.0,0.00019126,2]
[367883359,1750954241771,-151.0,0.00019126,2]
[367883360,1750954241780,-151.0,0.00019126,2]
[367883361,1750954241790,-151.0,0.00019126,2]
[367883362,1750954241799,-151.0,0.00019126,2]
[367883363,1750954241808,-151.0,0.00019127,2]
[367883364,1750954241818,-151.0,0.00019127,2]
[367883365,1750954241827,-344.13661,0.00019127,2]
[367883366,1750954241837,-344.13661,0.00019127,2]
[367883367,1750954241846,-344.13661,0.00019127,2]
[367883368,1750954241855,-344.13661,0.00019127,2]
[367883369,1750954241866,-151.0,0.00019127,2]
[367883370,1750954241875,-151.0,0.00019127,2]
[367883371,1750954241884,-151.0,0.00019127,2]
[367883372,1750954241893,-151.0,0.00019127,2]
[367883373,1750954241903,-151.0,0.00019135,2]
[367883374,1750954241912,-151.0,0.00019135,2]
[367883375,1750954241921,-151.0,0.00019135,2]
[367883376,1750954241931,-151.0,0.00019135,2]
[367883377,1750954241940,-151.0,0.00019135,2]
[367883378,1750954241949,-717.759722,0.00019135,2]
[367883379,1750954241958,-717.759722,0.00019135,2]
[367883381,1750954241967,-717.759722,0.00019135,2]
[367883382,1750954241977,-717.759722,0.00019135,2]
[367883383,1750954241986,-717.759722,0.00019135,2]
[367883385,1750954241996,-717.759722,0.00019135,2]
[367883386,1750954242005,-717.759722,0.00019135,2]
[367883388,1750954242015,-717.759722,0.00019135,2]
[367883390,1750954242024,-3723.857893,0.00019135,2]
[367883392,1750954242034,-3723.857893,0.00019135,2]
[367883394,1750954242043,-3723.857893,0.00019135,2]
[367883396,1750954242053,-3723.857893,0.00019135,2]
[367883398,1750954242062,-3723.857893,0.00019135,2]
[367883400,1750954242071,-3723.857893,0.00019135,2]
[367883402,1750954242080,-3723.857893,0.00019135,2]
[367883404,1750954242090,-3723.857893,0.00019135,2]
[367883406,1750954242099,-228.403767,0.00019135,2]
[367883408,1750954242108,-228.403767,0.00019135,2]
[367883410,1750954242117,-228.403767,0.00019135,2]
[367883412,1750954242127,-228.403767,0.00019135,2]
[367883414,1750954242136,-228.403767,0.00019135,2]
[367883415,1750954242145,-228.403767,0.00019135,2]
[367883418,1750954242155,-228.403767,0.00019135,2]
[367883419,1750954242164,-228.403767,0.00019135,2]
[367883421,1750954242173,-459.55804,0.00019135,2]
[367883423,1750954242182,-459.55804,0.00019135,2]
[367883425,1750954242191,-459.55804,0.00019135,2]
[367883427,1750954242200,-459.55804,0.00019135,2]
[367883429,1750954242209,-459.55804,0.00019135,2]
[367883431,1750954242219,-459.55804,0.00019135,2]
[367883434,1750954242232,-459.55804,0.00019135,2]
[367883435,1750954242241,-459.55804,0.00019135,2]
[367883437,1750954242250,-459.55804,0.00019135,2]
[367883456,1750954242421,-459.55804,0.00019135,2]
[367883458,1750954242432,-151.0,0.00019136,2]
[367883460,1750954242441,-151.0,0.00019136,2]
[367883463,1750954242451,-151.0,0.00019136,2]
[367883465,1750954242460,-151.0,0.00019137,2]
[367883467,1750954242470,-152.810406,0.00019137,2]
[367883469,1750954242479,-151.0,0.00019137,2]
[367883471,1750954242488,-151.0,0.00019137,2]
[367883473,1750954242497,-151.0,0.00019137,2]
[367883476,1750954242507,-151.0,0.00019137,2]
[367883478,1750954242517,-151.0,0.00019137,2]
[367883480,1750954242526,-151.0,0.00019137,2]
[367883483,1750954242536,-151.0,0.00019137,2]
[367883487,1750954242546,-151.0,0.00019137,2]
[367883490,1750954242555,-151.0,0.00019137,2]
[367883493,1750954242566,-151.0,0.00019137,2]
[367883495,1750954242577,-1000.69910344,0.00019137,2]
[367883498,1750954242587,-151.0,0.00019138,2]
[367883501,1750954242596,-151.0,0.00019138,2]
[367883504,1750954242606,-151.0,0.00019138,2]
[367883508,1750954242616,-151.0,0.00019138,2]
[367883512,1750954242626,-151.0,0.00019138,2]
[367883517,1750954242635,-151.393314,0.00019138,2]
[367883521,1750954242644,-151.0,0.00019138,2]
[367883523,1750954242653,-151.0,0.00019138,2]
[367883527,1750954242662,-151.0,0.00019138,2]
[367883531,1750954242672,-151.0,0.00019138,2]
[367883533,1750954242681,-151.0,0.00019138,2]
[367883535,1750954242690,-151.0,0.00019138,2]
[367883537,1750954242699,-151.0,0.00019138,2]
[367883539,1750954242709,-151.0,0.00019138,2]
[367883541,1750954242718,-151.0,0.00019138,2]
[367883543,1750954242727,-151.0,0.00019138,2]
[367883545,1750954242736,-151.0,0.00019138,2]
[367883547,1750954242745,-251.7745,0.00019138,2]
[367883548,1750954242755,-189.34446,0.00019138,2]
[367883550,1750954242764,-459.55804,0.00019138,2]
[367883552,1750954242773,-459.55804,0.00019138,2]
[367883555,1750954242783,-151.0,0.00019139,2]
[367883556,1750954242792,-296.118955,0.00019139,2]
[367883558,1750954242801,-151.0,0.00019139,2]
[367883561,1750954242811,-169.369692,0.00019139,2]
[367883562,1750954242820,-213.521911,0.00019139,2]
[367883564,1750954242830,-213.521911,0.00019139,2]
[367883566,1750954242839,-213.521911,0.00019139,2]
[367883568,1750954242848,-213.521911,0.00019139,2]
[367883571,1750954242858,-151.0,0.00019139,2]
[367883573,1750954242867,-151.0,0.00019139,2]
[367883575,1750954242877,-213.521911,0.00019178,2]
[367883577,1750954242886,-213.521911,0.00019178,2]
[367883579,1750954242896,-265.191965,0.00019178,2]
[367883581,1750954242905,-153.0,0.00019178,2]
[367883583,1750954242915,-153.0,0.00019178,2]
[367883585,1750954242924,-151.0,0.000192,2]
[367883587,1750954242933,-151.0,0.000192,2]
[367883589,1750954242942,-4588.07040311,0.00019219,2]
[367883591,1750954242952,-500.0,0.00019242,2]
[367883593,1750954242961,-500.0,0.00019275,2]
[367883595,1750954242970,-168.0,0.00019279,2]
[367883597,1750954242981,-151.0,0.00019279,2]
[367883599,1750954242990,-151.0,0.000193,2]
[367883601,1750954242999,-151.0,0.000193,2]
[367883603,1750954243010,-152.101669,0.00019325,2]
[367883604,1750954243020,-306.872382,0.00019325,2]
[367883606,1750954243029,-306.872382,0.00019325,2]
[367883608,1750954243039,-306.872382,0.00019325,2]
[367883610,1750954243047,-306.872382,0.00019325,2]
[367883612,1750954243057,-306.872382,0.00019325,2]
[367883614,1750954243066,-306.872382,0.00019325,2]
[367883616,1750954243076,-306.872382,0.00019325,2]
[367883618,1750954243085,-306.872382,0.00019325,2]
[367883621,1750954243095,-306.872382,0.00019325,2]
[367883622,1750954243104,-306.872382,0.00019325,2]
[367883625,1750954243113,-306.872382,0.00019325,2]